Cogmind - Beta 12 @@@ ROGUE MODE // 2023.03.25 @ 09:37:48 Player: Savant Result: Escaped! Performance ------------- Evolutions (9) 4500 Regions Visited (31) 6200 Robots Destroyed (322) 1610 Value Destroyed (12819) 12819 Prototype IDs (93) 1860 Alien Tech Used (2) 400 Bonus (10626) 10626 TOTAL SCORE: 38015 Bonus ------- High Alert Combat Kills 807 Follower Combat Kills 974 Met Data Miner 300 Met Imprinter 300 Destroyed Z-Imprinter 1000 Triggered Deep Caves Wall 500 Exposed GOLEM Chamber 500 Met Zhirov 300 Met Warlord at Base 500 MAIN.C Attacked Warlord 500 Warlord Defense Kills 100 Met Warlord at Research 2000 Win 3000 Friendly Fire -155 Cogmind --------- Core Integrity 1522/1600 Matter 269/300 Energy 2084/2100 System Corruption 4% Temperature Cool (4) Movement Walking (148) Ox1 Location To Epsilon Eridani Parts ------- > --- POWER (2) -------- Assembled Flux Generator > --- PROPULSION (4) --- Assembled Alloy Leg Assembled Alloy Leg Centrium Leg High-density Centrium Leg > --- UTILITY (16) ----- Assembled Nanovents Assembled Nanovents Assembled Nanovents Assembled Nanovents High-capacity Storage Unit Assembled Biocell Array Assembled Biocell Array Assembled Suspension Frame Assembled Metafiber Network Assembled Combat Suite Assembled Alloy Armor Assembled Alloy Armor Assembled Alloy Armor Assembled Alloy Armor GOLEM Unit > --- WEAPON (3) ------- Assembled Focal Cannon Assembled Focal Cannon Assembled Focal Cannon > --- INVENTORY (20) --- Vortex Chain Reactor Advanced Energy Well (500) Advanced Energy Well (500) Experimental Sensor Array Advanced Transmission Jammer Improved Trap Extractor (1/6 Dirty Bomb) Improved Trap Extractor (6/6 Fire) Hacking Drone Bay (1/1) GOLEM Unit GOLEM Unit GOLEM Unit Transdimensional Reconstructor Rocket Array Advanced Remote Datajack Peak State ------------ > --- POWER ------------ Assembled Flux Generator > --- PROPULSION ------- Assembled Alloy Leg Assembled Alloy Leg Centrium Leg High-density Centrium Leg > --- UTILITY ---------- Assembled Nanovents Assembled Nanovents Assembled Nanovents Assembled Nanovents High-capacity Storage Unit Assembled Biocell Array Assembled Biocell Array Assembled Suspension Frame Assembled Metafiber Network Assembled Combat Suite Assembled Alloy Armor Assembled Alloy Armor Assembled Alloy Armor Assembled Alloy Armor GOLEM Unit > --- WEAPON ----------- Assembled Focal Cannon Assembled Focal Cannon Assembled Focal Cannon > --- INVENTORY -------- Vortex Chain Reactor Advanced Energy Well Advanced Energy Well Experimental Sensor Array Advanced Transmission Jammer Improved Trap Extractor Improved Trap Extractor Hacking Drone Bay GOLEM Unit GOLEM Unit GOLEM Unit Dimensional Node Initializer Transdimensional Reconstructor Rocket Array Advanced Remote Datajack [Rating: 229] Favorites ----------- Power Assembled Flux Generator Engine Heavy Deuterium Engine Power Core Micro Fission Core Reactor Assembled Flux Generator Propulsion Assembled Alloy Leg Treads Light Treads Leg Assembled Alloy Leg Wheel Armored Wheel Utility Assembled Nanovents Device Assembled Nanovents Storage High-capacity Storage Unit Processor Advanced Signal Interpreter Hackware Hacking Suite Protection Assembled Alloy Armor Weapon Assembled Focal Cannon Energy Gun Improved EM Shotgun Energy Cannon Assembled Focal Cannon Ballistic Gun Assault Rifle Ballistic Cannon Gauss Cannon Launcher Rocket Array Special Weapon Advanced Remote Datajack Impact Weapon Impact Mace Special Melee Weapon Datajack Build | -11 -10 -10 -9 -9 -9 -8 -8 -7 -7 -7 -7 -7 -6 -6 -6 -6 -6 -5 -5 -5 -5 -5 -4 -4 -4 -4 -4 -3 -3 -2 -1 ------- Run | Jun Mat Min Mat Min Exi Min Mat Fac Low Low Zio Dee Pro Fac Low Low Dat Pro Fac Upp Upp War Pro Fac Upp Upp Zhi Pro Res Res Acc Slots Evolved 18 | . . . 2 . . . 2 2 . . . . . 2 . . . . 2 . . . . 2 . . . . 2 2 2 Power 1 | . . . . . . . . . . . . . . 1 . . . . . . . . . . . . . . . . . Propulsion 2 | . . . 1 . . . 1 . . . . . . . . . . . . . . . . . . . . . . . . Utility 14 | . . . 1 . . . 1 2 . . . . . 1 . . . . 2 . . . . 2 . . . . 2 1 2 Weapon 1 | . . . . . . . . . . . . . . . . . . . . . . . . . . . . . . 1 . Parts Attached 549 | 6 28 17 68 5 2 3 36 109 21 4 11 39 5 13 2 4 1 5 19 8 10 9 8 26 2 10 8 6 27 13 24 Power 21 | 1 1 2 2 . . . 3 2 . . 2 3 1 2 . . . 1 . . 1 . . . . . . . . . . Engine 10 | 1 1 2 2 . . . . 2 . . 1 1 . . . . . . . . . . . . . . . . . . . Core 8 | . . . . . . . 3 . . . 1 . . 2 . . . 1 . . 1 . . . . . . . . . . Reactor 3 | . . . . . . . . . . . . 2 1 . . . . . . . . . . . . . . . . . . Propulsion 99 | 2 11 10 32 1 . 2 12 9 2 . . 6 . . . . . . 3 . 1 2 . 2 . . . 1 1 2 . Treads 44 | 1 5 5 14 1 . 1 10 6 1 . . . . . . . . . . . . . . . . . . . . . . Leg 23 | . . . 2 . . . . 2 1 . . 6 . . . . . . 3 . 1 2 . 2 . . . 1 1 2 . Wheel 32 | 1 6 5 16 . . 1 2 1 . . . . . . . . . . . . . . . . . . . . . . . Hover . | . . . . . . . . . . . . . . . . . . . . . . . . . . . . . . . . Flight . | . . . . . . . . . . . . . . . . . . . . . . . . . . . . . . . . Utility 272 | 1 3 . 8 1 . . 4 47 14 1 7 18 2 11 2 4 1 3 16 8 8 7 8 23 2 10 6 5 26 6 20 Device 224 | . 1 . 3 . . . 1 33 12 1 4 9 2 9 2 4 1 3 16 8 7 6 8 22 2 10 5 5 25 6 19 Storage 6 | 1 1 . 1 . . . . . . . . . . . . . . . . . 1 . . 1 . . 1 . . . . Processor 7 | . . . . . . . 1 1 . . 1 . . 1 . . . . . . . 1 . . . . . . 1 . 1 Hackware 6 | . . . . . . . 2 3 . . . . . 1 . . . . . . . . . . . . . . . . . Protection 29 | . 1 . 4 1 . . . 10 2 . 2 9 . . . . . . . . . . . . . . . . . . . Artifact . | . . . . . . . . . . . . . . . . . . . . . . . . . . . . . . . . Weapon 157 | 2 13 5 26 3 2 1 17 51 5 3 2 12 2 . . . . 1 . . . . . 1 . . 2 . . 5 4 Energy Gun 31 | . 6 3 1 2 1 1 8 5 . . . 4 . . . . . . . . . . . . . . . . . . . Energy Cannon 29 | . . . 13 . . . . 12 3 . . 1 . . . . . . . . . . . . . . . . . . . Ballistic Gun 10 | 2 3 1 2 . . . . 1 . . . 1 . . . . . . . . . . . . . . . . . . . Ballistic Cannon 17 | . . . . . . . 4 11 . 1 1 . . . . . . . . . . . . . . . . . . . . Launcher 15 | . . 1 2 1 . . 1 2 1 1 . 2 . . . . . . . . . . . . . . . . . 2 2 Special Weapon 18 | . 4 . 3 . . . . . . . 1 . 1 . . . . 1 . . . . . 1 . . 2 . . 3 2 Impact Weapon 34 | . . . 3 . . . 4 20 1 1 . 4 1 . . . . . . . . . . . . . . . . . . Slashing Weapon . | . . . . . . . . . . . . . . . . . . . . . . . . . . . . . . . . Piercing Weapon . | . . . . . . . . . . . . . . . . . . . . . . . . . . . . . . . . Special Melee Weapon 3 | . . . 2 . 1 . . . . . . . . . . . . . . . . . . . . . . . . . . Unidentified Prototypes 23 | . . . . . . . 1 2 . . 3 7 . . . . . . . . . 4 . 1 . . 3 1 1 . . Parts Lost 34 | . 1 7 1 1 . 1 1 6 1 1 . 3 1 . . . . . 1 . . 1 . 5 . . 1 . . 1 1 Power 4 | . 1 1 . . . . . . . . . 1 1 . . . . . . . . . . . . . . . . . . Propulsion 8 | . . 2 1 . . . 1 2 . . . 1 . . . . . . . . . . . 1 . . . . . . . Utility 13 | . . . . 1 . . . 2 1 . . 1 . . . . . . 1 . . 1 . 3 . . 1 . . 1 1 Weapon 9 | . . 4 . . . 1 . 2 . 1 . . . . . . . . . . . . . 1 . . . . . . . Highest Loss Streak 3 | . 1 3 1 1 . 1 1 1 1 1 . 2 1 . . . . . 1 . . 1 . 3 . . 1 . . 1 1 To Critical Strikes 1 | . . . . . . . . . . . . . . . . . . . . . . . . 1 . . . . . . . Average Slot Usage (%) 94 | . 99 99 99 99 100 99 100 99 100 100 99 91 91 92 93 93 93 93 94 93 94 91 88 88 89 89 88 88 89 88 91 Engine 3 | . 14 14 11 11 11 11 1 5 7 7 6 4 . . . . . . . . . . . . . . . . . . . Core 1 | . . . . . . . 7 1 . . . . . 5 6 6 6 6 5 5 5 2 . . . . . . . . . Reactor 2 | . . . . . . . . . . . . 2 6 6 6 6 6 6 5 5 5 5 5 5 5 5 5 5 4 4 4 Treads 8 | . 14 14 11 10 11 11 31 24 21 23 23 4 . . . . . . . . . . . . . . . . . . . Leg 14 | . . . . . . . . 3 7 7 7 25 30 26 26 26 26 26 23 22 23 23 23 20 21 21 21 20 19 17 16 Wheel 3 | . 13 13 21 22 22 21 4 1 1 . . . . . . . . . . . . . . . . . . . . . . Device 17 | . 12 14 11 11 11 11 3 7 10 7 13 7 11 20 20 20 20 20 23 23 23 23 23 30 31 31 31 31 32 30 31 Storage 10 | . 14 14 11 11 11 11 9 7 7 7 7 7 15 13 13 13 13 13 11 11 11 11 11 10 10 10 10 10 9 12 12 Processor 6 | . . . . . . . 9 13 7 7 7 15 10 6 6 6 6 6 5 5 5 5 5 5 5 5 5 5 4 4 7 Hackware 3 | . . . . . . . 14 14 15 15 2 . . . . . . . . . . . . . . . . . . . . Protection 4 | . 1 . 11 10 11 11 . 1 4 7 12 6 . . . . . . 5 5 5 5 5 4 5 5 5 5 8 8 8 Energy Gun 3 | . 12 25 2 21 15 21 14 1 . . . 6 . . . . . . . . . . . . . . . . . . . Energy Cannon 6 | . . . 13 . . . . 1 7 . . 1 12 13 13 13 13 12 11 11 11 11 11 9 10 10 8 10 9 8 8 Ballistic Cannon 1 | . . . . . . . 1 5 3 4 . 1 . . . . . . . . . . . . . . . . . . . Impact Weapon 1 | . . . 2 . . . 2 5 3 10 14 1 2 . . . . . . . . . . . . . . . . . . Naked Turns . | . . . . . . . . . . . . . . . . . . . . . . . . . . . . . . . . Heaviest Build 155 | 11 52 52 67 64 61 61 61 75 76 65 87 87 85 93 91 93 91 91 97 99 104 120 122 125 121 123 121 123 130 144 155 Greatest Support 142 | 16 40 26 60 36 24 24 84 86 74 74 74 108 108 108 108 108 108 108 108 108 108 110 110 130 130 130 130 137 137 142 142 Greatest Overweight (x) 6 | . 3 3 5 2 2 5 2 6 6 . 1 1 . . . . 1 . . 1 . 1 1 1 1 . 1 1 . 1 1 Average Overweight (x) . | . 2 2 1 1 2 3 . 1 1 . . . . . . . . . . . . . 1 . . . . . . . . Largest Inventory Capacity 20 | 8 20 20 20 20 20 20 20 20 20 20 20 20 20 20 20 20 20 20 20 20 20 20 20 20 20 20 20 20 20 20 20 Average Capacity 19 | 6 18 20 20 20 20 20 20 20 20 20 20 20 20 20 20 20 20 20 20 20 20 20 20 20 20 20 20 20 20 20 20 Most Carried 20 | 5 20 20 20 20 20 20 20 20 20 20 20 20 20 20 20 20 20 20 20 20 20 20 20 20 20 20 20 20 20 20 19 Average Carried 19 | 3 15 17 19 19 20 19 19 19 19 19 19 19 19 19 20 20 20 19 19 19 19 19 20 19 20 19 19 20 19 19 17 Final Capacity 20 | 8 20 20 20 20 20 20 20 20 20 20 20 20 20 20 20 20 20 20 20 20 20 20 20 20 20 20 20 20 20 20 20 Final Carried 20 | 5 18 15 20 20 20 19 20 20 20 20 20 20 20 20 20 20 20 20 20 20 20 20 20 20 20 20 20 20 20 20 18 Class Distribution -------------------- 26% | Trapper-Golem 26% | Golem 24% | Mutant 14% | Hacker-Mutant 5% | Hacker-Assassin Dominant Class ---------------- Mutant | -10/Materials Mutant | -10/Mines Mutant | -9/Materials Mutant | -9/Mines Scavenger-Mutant | -9/Exiles Mutant | -8/Mines Hacker-Mutant | -8/Materials Hacker-Assassin | -7/Factory Hacker-Mutant | -7/Lower Caves Hacker-Mutant | -7/Lower Caves Mutant | -7/Zion Mutant | -7/Deep Caves Golem | -6/Proximity Caves Golem | -6/Factory Golem | -6/Lower Caves Golem | -6/Lower Caves Golem | -6/Data Miner Golem | -5/Proximity Caves Golem | -5/Factory Golem | -5/Upper Caves Trapper-Golem | -5/Upper Caves Trapper-Golem | -5/Warlord Trapper-Golem | -4/Proximity Caves Golem | -4/Factory Golem | -4/Upper Caves Trapper-Golem | -4/Upper Caves Trapper-Golem | -4/Zhirov Trapper-Golem | -3/Proximity Caves Trapper-Golem | -3/Research Trapper-Golem | -2/Research Trapper-Golem | -1/Access Resources | -11 -10 -10 -9 -9 -9 -8 -8 -7 -7 -7 -7 -7 -6 -6 -6 -6 -6 -5 -5 -5 -5 -5 -4 -4 -4 -4 -4 -3 -3 -2 -1 ----------- Run | Jun Mat Min Mat Min Exi Min Mat Fac Low Low Zio Dee Pro Fac Low Low Dat Pro Fac Upp Upp War Pro Fac Upp Upp Zhi Pro Res Res Acc Matter Collected 7207 | 194 405 262 892 63 20 30 484 1551 359 94 129 440 90 103 62 65 . 60 169 107 100 26 139 250 10 110 105 68 270 205 345 Remotely . | . . . . . . . . . . . . . . . . . . . . . . . . . . . . . . . . Salvage Created 13709 | . 407 156 1127 340 . 231 1857 2132 437 142 . 780 349 73 . 52 . 86 455 102 96 62 210 861 . 40 . 289 1178 545 1702 Parts 721 | . 25 4 91 40 . 10 110 109 16 6 . 18 10 2 . 2 . 8 24 9 9 . 9 32 . . . 7 73 20 87 Haulers Intercepted 12 | . . . 4 . . . 4 3 . . . . . . . . . . . . . . . . . . . . . . 1 Recyclers Shooed 7 | . 1 . . . . . 2 . . . . . . . . . . . . . . . . 2 . . . . 1 . 1 Parts Field Recycled . | . . . . . . . . . . . . . . . . . . . . . . . . . . . . . . . . Retrieved Matter . | . . . . . . . . . . . . . . . . . . . . . . . . . . . . . . . . Parts Self-Destructed 89 | . . . . . . . . . 10 6 2 . 9 . . 7 . 11 . 11 8 . 8 . 7 . . 10 . . . Prevented 22 | . . . . . . . . . 12 . . . . . . . . . . 4 . . 5 . . . . 1 . . . Kills | -11 -10 -10 -9 -9 -9 -8 -8 -7 -7 -7 -7 -7 -6 -6 -6 -6 -6 -5 -5 -5 -5 -5 -4 -4 -4 -4 -4 -3 -3 -2 -1 ------- Run | Jun Mat Min Mat Min Exi Min Mat Fac Low Low Zio Dee Pro Fac Low Low Dat Pro Fac Upp Upp War Pro Fac Upp Upp Zhi Pro Res Res Acc Combat Hostiles Destroyed 293 | . 9 11 23 21 . 4 30 36 9 4 . 51 7 1 . 1 . 5 7 4 1 1 3 13 . . . 1 14 14 23 Melee 2 | . . . . . . . . 1 . . . 1 . . . . . . . . . . . . . . . . . . . Guns 61 | . 8 7 5 13 . 4 16 6 . . . 2 . . . . . . . . . . . . . . . . . . . Cannons 108 | . . . 12 . . . 5 17 3 . . 2 4 1 . 1 . 2 7 4 1 1 3 6 . . . 1 14 4 20 AOE 107 | . 1 4 6 8 . . 6 9 3 4 . 43 2 . . . . 3 . . . . . 5 . . . . . 10 3 Classes Destroyed 26 | . 5 2 5 . . 2 1 2 2 . . 3 1 . . . . . . . . . . 1 . . . . 1 1 . Worker 10 | . . . 2 . . . 3 2 . . . . . . . . . . . . . . . . . . . . 2 . 1 Builder 12 | . . . 1 . . . . 9 . . . . . . . . . . . . . . . . . . . . . . 2 Tunneler 1 | . . . . . . . . . . . . . . . . . . . . . . . . . . . . . 1 . . Hauler 12 | . . . 4 . . . 4 3 . . . . . . . . . . . . . . . . . . . . . . 1 Recycler 9 | . 1 . . . . . 3 4 . . . . . . . . . . . . . . . 1 . . . . . . . Carrier 2 | . . . . . . . . 1 . . . . . . . . . . . . . . . . . . . . . . 1 Minesweeper 8 | . . . . . . . . . 2 1 . . 2 . . . . . . . 1 . . . . 1 . 1 . . . Mechanic 1 | . . . . . . . 1 . . . . . . . . . . . . . . . . . . . . . . . . Operator 4 | . 1 . . . . . 1 . . . . . . . . . . . 1 . . . . . . . . . 1 . . Watcher 17 | . 2 . 4 . . . 4 1 . . . . . . . . . . . . . . . 2 . . . . 2 . 2 Swarmer 82 | . 5 . 9 19 . . 10 11 3 4 . . . . . . . 4 . 4 . . . . . . . . . 7 6 Grunt 54 | . 4 2 5 2 . 2 9 11 3 . . . 6 . . 1 . . 2 . . 1 1 . . . . . 2 1 2 Brawler 6 | . . . 1 . . . 1 . 1 . . . . . . . . . . . . . . . . . . . . . 3 Duelist 3 | . . . . . . 1 . 2 . . . . . . . . . . . . . . . . . . . . . . . Sentry 30 | . . . 8 . . . 9 4 1 . . . . 1 . . . . 2 . . . . 1 . . . . 2 . 2 Demolisher 2 | . . 1 . . . . . . . . . . . . . . . . . . . . . . . . . . . 1 . Hunter 25 | . . . . . . 1 1 1 . . . . . . . . . . 1 . . . 2 7 . . . . 4 4 4 Programmer 27 | . . . . . . . . 7 . . . . . . . . . 1 2 . . . . 4 . . . 1 6 . 6 Heavy 1 | . . . . . . . . . . . . . . . . . . . . . . . . 1 . . . . . . . Behemoth 2 | . . . . . . . . . . . . . 1 . . . . . . . 1 . . . . . . . . . . Striker 1 | . . . . . . . . . . . . . . . . . . . . . . . . . . . . . . 1 . Z-Light 7 | . . . . . . . . . . . . 7 . . . . . . . . . . . . . . . . . . . Assembler 2 | . . . . . . . . . . . . 2 . . . . . . . . . . . . . . . . . . . Assembled 48 | . . 8 . . . . . . . . . 40 . . . . . . . . . . . . . . . . . . . Golem 3 | . . . . . . . . . . . . 3 . . . . . . . . . . . . . . . . . . . Mutant 1 | . . . . . . . . . 1 . . . . . . . . . . . . . . . . . . . . . . Best Kill Streak 42 | . 3 6 6 5 . 3 5 8 3 4 . 42 4 1 . 1 . 4 2 3 1 1 2 5 . 1 . 1 3 9 5 Combat Bots Only 40 | . 3 6 6 5 . 3 5 6 3 4 . 40 4 1 . 1 . 4 2 3 1 1 2 5 . . . 1 3 9 4 Max Kills in Single Turn 29 | . 2 2 3 3 . 2 3 3 1 4 . 29 1 1 . 1 . 3 1 1 1 1 1 2 . 1 . 1 2 4 2 Gunslinging 1 | . 1 . . . . 1 . . . . . . . . . . . . . . . . . . . . . . . . . Exploded 29 | . 1 2 3 3 . . 3 3 1 4 . 29 1 . . . . 2 . . . . . 2 . . . . . 4 2 Melee 1 | . . . . . . . . 1 . . . 1 . . . . . . . . . . . . . . . . . . . Uniques/NPCs Destroyed 1 | . . . . . . . . . . . . 1 . . . . . . . . . . . . . . . . . . . Z-Imprinter (-7/Deep Caves) Combat | -11 -10 -10 -9 -9 -9 -8 -8 -7 -7 -7 -7 -7 -6 -6 -6 -6 -6 -5 -5 -5 -5 -5 -4 -4 -4 -4 -4 -3 -3 -2 -1 -------- Run | Jun Mat Min Mat Min Exi Min Mat Fac Low Low Zio Dee Pro Fac Low Low Dat Pro Fac Upp Upp War Pro Fac Upp Upp Zhi Pro Res Res Acc Damage Taken 14640 | . 446 897 480 429 . 223 810 2452 517 162 . 1179 848 37 17 . . 72 386 263 112 49 126 1697 . . 285 39 714 1007 1393 Core 1472 | . 56 176 69 18 . 21 132 193 40 . . 139 167 . . . . 27 59 50 19 15 7 50 . . . . 30 126 78 Absorbed by Shields 205 | . . . . . . . . . . . . . . . . . . . . . 40 . 117 48 . . . . . . . Redirected to Shielding 19 | . 19 . . . . . . . . . . . . . . . . . . . . . . . . . . . . . . Regen/Repaired (Parts) 513 | . 94 . 119 . . . 229 17 . . . . . . . . . . . . . . . . . . . . . 54 . Core Remaining (%) 76 | 100 . 7 . . . 73 76 . . . . . 23 . . . . 96 . . . . 85 . . . . 95 97 91 95 Volleys Fired 912 | . 55 20 69 20 . 10 67 112 17 1 . 33 23 16 10 19 . 8 33 32 17 4 15 64 . 15 8 18 106 31 89 Largest 3 | . 2 2 2 2 . 2 2 2 2 1 . 2 2 2 1 2 . 2 2 2 2 2 2 2 . 2 1 2 2 2 3 Hottest 165 | . 165 90 126 90 . 90 100 138 138 36 . 120 50 50 25 50 . 50 50 50 50 50 50 50 . 50 25 50 50 50 95 Shots Fired 1508 | . 93 38 113 39 . 20 133 180 29 1 . 43 30 17 10 25 . 10 53 43 32 8 27 106 . 19 8 36 176 54 165 Gun 380 | . 78 36 36 38 . 20 106 39 . . . 27 . . . . . . . . . . . . . . . . . . . Cannon 1040 | . . . 58 . . . 26 136 26 . . 1 28 17 10 25 . 8 53 43 32 8 27 100 . 19 4 36 176 50 157 Launcher 29 | . . 2 3 1 . . 1 5 3 1 . 5 . . . . . . . . . . . . . . . . . 4 4 Special 59 | . 15 . 16 . . . . . . . . 10 2 . . . . 2 . . . . . 6 . . 4 . . . 4 Kinetic 201 | . 66 5 22 . . . 26 79 3 . . . . . . . . . . . . . . . . . . . . . . Thermal 868 | . 19 5 31 . . . . 17 3 . . . 28 17 10 25 . 8 53 43 32 8 27 100 . 19 4 36 176 50 157 Explosive 49 | . . 2 3 1 . . 1 5 3 1 . 15 2 . . . . 2 . . . . . 6 . . . . . 4 4 Electromagnetic 355 | . 8 26 57 38 . 20 106 79 20 . . 1 . . . . . . . . . . . . . . . . . . . Phasic 27 | . . . . . . . . . . . . 27 . . . . . . . . . . . . . . . . . . . Robot Hit Streak 19 | . 11 13 15 11 . 12 13 16 8 9 . 12 17 19 . 4 . 4 12 4 11 4 8 13 . 10 11 11 17 18 13 Robot Miss Streak 6 | . 4 3 4 3 . 2 6 6 2 . . 4 . . . 2 . 1 1 3 1 1 1 2 . . 1 . 3 2 3 Penetration Max . | . . . . . . . . . . . . . . . . . . . . . . . . . . . . . . . . Secondary Targets 5 | . 3 1 . . . 1 . . . . . . . . . . . . . . . . . . . . . . . . . Max Gunslinging Chain 1 | . 1 1 . . . 1 . . . . . . . . . . . . . . . . . . . . . . . . . Shots Hit Robots 816 | . 48 27 70 29 4 20 107 130 23 4 . 31 28 2 . 8 . 4 29 7 11 6 13 45 . 6 3 9 53 23 76 Core Hits 575 | . 23 21 35 24 . 13 67 62 10 4 . 111 14 1 . 2 . 6 10 3 5 2 6 27 . 2 . 4 30 40 53 Critical Kills . | . . . . . . . . . . . . . . . . . . . . . . . . . . . . . . . . Critical Parts Destroyed 11 | . . . 1 . . . . 5 . . . 2 3 . . . . . . . . . . . . . . . . . . Critical Strikes 26 | . 1 . 2 . . . 3 9 2 . . 4 3 . . . . . . . . . . 2 . . . . . . . Burn 1 | . 1 . . . . . . . . . . . . . . . . . . . . . . . . . . . . . . Blast 7 | . . . . . . . 3 3 1 . . . . . . . . . . . . . . . . . . . . . . Corrupt 3 | . . . 1 . . . . 1 1 . . . . . . . . . . . . . . . . . . . . . . Smash 11 | . . . 1 . . . . 5 . . . 2 3 . . . . . . . . . . . . . . . . . . Sever 3 | . . . . . . . . . . . . 1 . . . . . . . . . . . 2 . . . . . . . Intensify 1 | . . . . . . . . . . . . 1 . . . . . . . . . . . . . . . . . . . Melee Attacks 215 | . . . 16 . 4 . 13 119 4 11 10 17 21 . . . . . . . . . . . . . . . . . . Impact 208 | . . . 13 . . . 13 119 4 11 10 17 21 . . . . . . . . . . . . . . . . . . Slashing . | . . . . . . . . . . . . . . . . . . . . . . . . . . . . . . . . Piercing . | . . . . . . . . . . . . . . . . . . . . . . . . . . . . . . . . Sneak Attacks 28 | . . . 3 . 4 . 3 14 2 2 . . . . . . . . . . . . . . . . . . . . . Combat Hostiles 1 | . . . . . . . . . . 1 . . . . . . . . . . . . . . . . . . . . . Follow-up Attacks . | . . . . . . . . . . . . . . . . . . . . . . . . . . . . . . . . Damage Inflicted 39116 | . 576 634 2105 988 . 360 3561 5532 945 454 . 5128 1781 31 . 287 . 825 1323 342 502 201 577 3014 . 300 . 409 2669 2185 4387 Guns 4779 | . 546 367 495 413 . 311 1722 562 . . . 363 . . . . . . . . . . . . . . . . . . . Cannons 18552 | . . . 945 . . . 434 2266 524 . . 22 697 31 . 287 . 130 1323 342 502 201 577 1969 . 300 . 409 2669 1107 3817 Explosions 11289 | . 30 267 526 575 . 47 970 850 225 229 . 3926 495 . . . . 615 . . . . . 905 . . . . . 1078 551 Melee 3860 | . . . 139 . . . 384 1847 196 225 . 556 513 . . . . . . . . . . . . . . . . . . Ramming 79 | . . . . . . 2 51 7 . . . . . . . . . . . . . . . . . . . . . . 19 Kinetic 2378 | . 440 25 339 . . . 434 1084 56 . . . . . . . . . . . . . . . . . . . . . . Thermal 16511 | . 60 82 223 361 . 47 760 534 52 . . . 697 31 . 287 . 130 1323 342 502 201 577 1969 . 300 . 409 2669 1107 3848 Explosive 9786 | . . 267 441 214 . . 210 661 225 229 . 3926 495 . . . . 615 . . . . . 905 . . . . . 1078 520 Electromagnetic 5582 | . 76 260 963 413 . 311 1722 1399 416 . . 22 . . . . . . . . . . . . . . . . . . . Impact 3860 | . . . 139 . . . 384 1847 196 225 . 556 513 . . . . . . . . . . . . . . . . . . Slashing 557 | . . . . . . . . . . . . 261 76 . . . . 80 . . . . . 140 . . . . . . . Piercing . | . . . . . . . . . . . . . . . . . . . . . . . . . . . . . . . . Phasic 363 | . . . . . . . . . . . . 363 . . . . . . . . . . . . . . . . . . . Highest Corruption 7 | . . 7 . . . . . 5 6 6 6 . . . . . . . 2 . . . . . . . . . . . 4 Average Corruption 3 | . . 7 . . . . . 2 5 6 6 . . . . . . . 1 . . . . . . . . . . . 2 Corruption Purged 7 | . . . . . . . . 5 . . . . . . . . . . 2 . . . . . . . . . . . . Corruption Blocked 44 | . . . . . . . . . . . . . . . . . . . . . . . . . . . . . . 41 3 Effects 139 | . . 1 . . . . . 43 43 30 1 . . . . . . . 5 . . . . . . . . . . . 16 Message Errors 34 | . . . . . . . . 9 9 8 . . . . . . . . 3 . . . . . . . . . . . 5 Matter Fused 30 | . . . . . . . . 6 13 8 . . . . . . . . 1 . . . . . . . . . . . 2 Heat Flow Errors 22 | . . 1 . . . . . 10 5 3 . . . . . . . . . . . . . . . . . . . . 3 Energy Discharges 14 | . . . . . . . . 6 5 2 . . . . . . . . . . . . . . . . . . . . 1 Parts Fused 2 | . . . . . . . . 1 . . 1 . . . . . . . . . . . . . . . . . . . . Data Loss (minor) 20 | . . . . . . . . 5 7 6 . . . . . . . . . . . . . . . . . . . . 2 Data Loss (major) 7 | . . . . . . . . 1 3 2 . . . . . . . . . . . . . . . . . . . . 1 Misfires 5 | . . . . . . . . 2 1 . . . . . . . . . 1 . . . . . . . . . . . 1 Alerts 3 | . . . . . . . . 2 . 1 . . . . . . . . . . . . . . . . . . . . . Weapon Failures 2 | . . . . . . . . 1 . . . . . . . . . . . . . . . . . . . . . . 1 Overload Shots . | . . . . . . . . . . . . . . . . . . . . . . . . . . . . . . . . Overflow Damage 3178 | . . 22 130 10 . . 144 1113 167 151 . 517 171 . . 24 . 62 92 52 . . . 144 . 77 . 28 67 65 142 Projectiles 845 | . . . 23 . . . 10 62 . . . 12 52 . . 24 . . 92 52 . . . 139 . 77 . 28 67 65 142 Explosions 350 | . . 22 52 10 . . 26 24 41 5 . 103 . . . . . 62 . . . . . 5 . . . . . . . Melee 1983 | . . . 55 . . . 108 1027 126 146 . 402 119 . . . . . . . . . . . . . . . . . . Knockbacks 20 | . . . 1 . . . 1 13 . 1 . 4 . . . . . . . . . . . . . . . . . . . Impact 13 | . . . 1 . . . . 7 . 1 . 4 . . . . . . . . . . . . . . . . . . . Kinetic 7 | . . . . . . . 1 6 . . . . . . . . . . . . . . . . . . . . . . . Secondary . | . . . . . . . . . . . . . . . . . . . . . . . . . . . . . . . . Self-Inflicted Damage 473 | . 12 81 38 102 . . 85 . 17 30 . 17 . . . . . . . . . . . . . . . . . . 91 Shots 21 | . 1 2 2 4 . . 3 . 1 1 . 1 . . . . . . . . . . . . . . . . . . 6 Rammed 9 | . . . . . . 2 5 2 . . . . . . . . . . . . . . . . . . . . . . . Targets Rammed 11 | . . . . . . 2 6 2 . . . . . . . . . . . . . . . . . . . . . . 1 Kicked 1 | . . . . . . . . . . . . . . . . . . . . . . . . . . . . . . . 1 Crushed 1 | . . . . . . . 1 . . . . . . . . . . . . . . . . . . . . . . . . Highest Temperature 366 | . 18 223 99 33 . 15 198 366 236 234 . 300 27 . . . . . . . . . . . . . . . . . 95 Average Temperature 63 | . 9 59 29 14 . 9 57 82 98 106 . 116 9 . . . . . . . . . . . . . . . . . 52 Received Heat Transfer 2263 | . 120 61 132 57 . 81 297 777 159 . . 192 174 12 . . . . 63 . 18 45 . . . . . . 48 . 27 Effects 2 | . . . . . . . . 1 . 1 . . . . . . . . . . . . . . . . . . . . . Energy Bleed 2 | . . . . . . . . 1 . 1 . . . . . . . . . . . . . . . . . . . . . Siege Activations . | . . . . . . . . . . . . . . . . . . . . . . . . . . . . . . . . Robots Corrupted 7 | . . . . . . . 3 . 3 . . 1 . . . . . . . . . . . . . . . . . . . Combat Hostiles 7 | . . . . . . . 3 . 3 . . 1 . . . . . . . . . . . . . . . . . . . Parts Fried 55 | . . 1 6 1 . 1 10 28 6 2 . . . . . . . . . . . . . . . . . . . . . Impact Corruptions 59 | . . . 3 . . . 3 29 5 8 . 8 3 . . . . . . . . . . . . . . . . . . Robots Melted 3 | . . . . . . . . 1 . . . . . . . . . . . . . . . 2 . . . . . . . Combat Hostiles 3 | . . . . . . . . 1 . . . . . . . . . . . . . . . 2 . . . . . . . Parts Melted 17 | . 1 . . . . . . 3 . . . 1 . . . . . . . . 1 . . 9 . . . . . 1 1 Heat Transferred 11109 | . 198 185 446 600 . 50 950 900 100 . . . 400 25 . 150 . 75 700 200 275 125 325 1000 . 150 . 250 1425 600 1980 Parts Sabotaged . | . . . . . . . . . . . . . . . . . . . . . . . . . . . . . . . . Parts Stolen . | . . . . . . . . . . . . . . . . . . . . . . . . . . . . . . . . Parts Stripped . | . . . . . . . . . . . . . . . . . . . . . . . . . . . . . . . . Power Chain Reactions 21 | . 1 . 1 5 . 1 10 3 . . . . . . . . . . . . . . . . . . . . . . . Missiles Intercepted . | . . . . . . . . . . . . . . . . . . . . . . . . . . . . . . . . Alert | -11 -10 -10 -9 -9 -9 -8 -8 -7 -7 -7 -7 -7 -6 -6 -6 -6 -6 -5 -5 -5 -5 -5 -4 -4 -4 -4 -4 -3 -3 -2 -1 ------- Run | Jun Mat Min Mat Min Exi Min Mat Fac Low Low Zio Dee Pro Fac Low Low Dat Pro Fac Upp Upp War Pro Fac Upp Upp Zhi Pro Res Res Acc Peak Influence 1185 | . 139 86 354 566 . 105 516 757 . . . . . 202 . . . . 127 . . . . 231 . . . . 252 296 1185 Initial 137 | . . 31 28 118 . . . 64 . . . . . . . . . . . . . . . . . . . . . 137 106 Average 203 | . 35 55 169 405 . 41 239 309 . . . . . 37 . . . . 39 . . . . 103 . . . . 88 162 583 Maximum Alert Level 4 | . . . 1 2 . . 2 3 . . . . . 1 . . . . . . . . . 1 . . . . 1 1 4 Low Security (%) 62 | 100 100 100 50 2 . 100 48 41 . . . . . 91 . . . . 100 . . . . 90 . . . . 89 75 16 Level 1 21 | . . . 49 40 . . 40 19 . . . . . 8 . . . . . . . . . 9 . . . . 10 24 28 Level 2 12 | . . . . 56 . . 10 36 . . . . . . . . . . . . . . . . . . . . . . 9 Level 3 3 | . . . . . . . . 2 . . . . . . . . . . . . . . . . . . . . . . 44 Level 4 . | . . . . . . . . . . . . . . . . . . . . . . . . . . . . . . . 1 Level 5 . | . . . . . . . . . . . . . . . . . . . . . . . . . . . . . . . . High Security . | . . . . . . . . . . . . . . . . . . . . . . . . . . . . . . . . Max Security . | . . . . . . . . . . . . . . . . . . . . . . . . . . . . . . . . Squads Dispatched 39 | . 1 . 2 . . . 5 16 . . . . . . . . . . 2 . . . . 2 . . . . 3 1 7 Investigation 11 | . 1 . 2 . . . 4 4 . . . . . . . . . . . . . . . . . . . . . . . Extermination 16 | . . . . . . . . 7 . . . . . . . . . . 2 . . . . 2 . . . . 2 . 3 Reinforcement 10 | . . . . . . . 1 4 . . . . . . . . . . . . . . . . . . . . 1 1 3 Assault 2 | . . . . . . . . 1 . . . . . . . . . . . . . . . . . . . . . . 1 Garrison . | . . . . . . . . . . . . . . . . . . . . . . . . . . . . . . . . Intercept . | . . . . . . . . . . . . . . . . . . . . . . . . . . . . . . . . Searches Triggered . | . . . . . . . . . . . . . . . . . . . . . . . . . . . . . . . . Construction Impeded 3 | . . . . . . . . 2 . . . . . . . . . . . . . . . . . . . . . . 1 Haulers Reinforced 2 | . . . . . . . . 1 . . . . . . . . . . . . . . . . . . . . . 1 . Active Scanning Responses . | . . . . . . . . . . . . . . . . . . . . . . . . . . . . . . . . Cargo Convoy Interrupts 1 | . . . . . . . . . . . . . . 1 . . . . . . . . . . . . . . . . . Stealth | -11 -10 -10 -9 -9 -9 -8 -8 -7 -7 -7 -7 -7 -6 -6 -6 -6 -6 -5 -5 -5 -5 -5 -4 -4 -4 -4 -4 -3 -3 -2 -1 --------- Run | Jun Mat Min Mat Min Exi Min Mat Fac Low Low Zio Dee Pro Fac Low Low Dat Pro Fac Upp Upp War Pro Fac Upp Upp Zhi Pro Res Res Acc Distress Signals 19 | . 1 . 2 . . . 5 2 . . . . . 1 . . . . . . . . . . . . . . . 8 . Communications Jammed 19 | . . . . . . . . . . . . . . . . . . . . . . . . 7 . . . . 3 . 9 Distress Signals 13 | . . . . . . . . . . . . . . . . . . . . . . . . 3 . . . . 3 . 7 Times Spotted 384 | . 14 12 40 23 . 4 46 53 10 4 . 53 7 2 4 1 . 7 8 4 1 2 3 15 . . 2 3 19 9 38 Peak Tracking Total 37 | . 3 6 5 5 . 3 5 5 3 4 . 37 4 2 4 1 . 5 2 4 1 4 1 4 . . 3 3 3 7 6 Tactical Retreats 14 | . 1 . 1 1 . . 1 4 1 . . . . . . . . 1 . . . . . . . . . . . 2 2 Traps | -11 -10 -10 -9 -9 -9 -8 -8 -7 -7 -7 -7 -7 -6 -6 -6 -6 -6 -5 -5 -5 -5 -5 -4 -4 -4 -4 -4 -3 -3 -2 -1 ------- Run | Jun Mat Min Mat Min Exi Min Mat Fac Low Low Zio Dee Pro Fac Low Low Dat Pro Fac Upp Upp War Pro Fac Upp Upp Zhi Pro Res Res Acc Traps Triggered 4 | . . 1 1 . . . . 2 . . . . . . . . . . . . . . . . . . . . . . . Indirectly . | . . . . . . . . . . . . . . . . . . . . . . . . . . . . . . . . Trap Hack Attempts 33 | . . . 33 . . . . . . . . . . . . . . . . . . . . . . . . . . . . Triggered . | . . . . . . . . . . . . . . . . . . . . . . . . . . . . . . . . Disarmed 2 | . . . 2 . . . . . . . . . . . . . . . . . . . . . . . . . . . . Reprogrammed 2 | . . . 2 . . . . . . . . . . . . . . . . . . . . . . . . . . . . Reused 13 | . . . . . . . . . 2 . . 2 . . . . . . 1 1 . . 2 3 . . . . 1 . 1 Traps Extracted 11 | . . . 2 . . . . . . . . . . 3 . 5 . . . 1 . . . . . . . . . . . Installed 46 | . . . . . . . . . 2 3 . 6 5 3 . 5 . . 3 2 . . 4 3 . 5 . . 3 . 2 Triggered 29 | . . . . . . . 2 1 5 1 . . . . . . . . 1 1 . 9 2 3 . . . 2 1 . 1 Most Traps Carried 12 | . . . 2 2 2 2 2 2 6 6 6 6 6 6 6 6 6 6 6 3 11 11 11 7 4 12 10 12 12 9 9 Exploded 1 | . . . . . . . . . . . . . . . . . . . 1 . . . . . . . . . . . . Machines | -11 -10 -10 -9 -9 -9 -8 -8 -7 -7 -7 -7 -7 -6 -6 -6 -6 -6 -5 -5 -5 -5 -5 -4 -4 -4 -4 -4 -3 -3 -2 -1 ---------- Run | Jun Mat Min Mat Min Exi Min Mat Fac Low Low Zio Dee Pro Fac Low Low Dat Pro Fac Upp Upp War Pro Fac Upp Upp Zhi Pro Res Res Acc Machines Disabled 18 | . 2 . 1 . . . 2 4 . . . 1 . . . . . . . . . . . . . 1 1 . 4 . 2 Max in Single Turn 1 | . 1 . 1 . . . 1 1 . . . 1 . . . . . . . . . . . . . 1 1 . 1 . 1 Garrison Access 6 | . . . . . . . . 2 . . . . . . . . . . . . . . . . . . . . 1 2 1 Energy Cycler 1 | . . . . . . . . . . . . . . . . . . . . . . . . . . . . . . . 1 Machines Repaired . | . . . . . . . . . . . . . . . . . . . . . . . . . . . . . . . . Machines Sabotaged . | . . . . . . . . . . . . . . . . . . . . . . . . . . . . . . . . Overloaded Fab Kills . | . . . . . . . . . . . . . . . . . . . . . . . . . . . . . . . . Hacking | -11 -10 -10 -9 -9 -9 -8 -8 -7 -7 -7 -7 -7 -6 -6 -6 -6 -6 -5 -5 -5 -5 -5 -4 -4 -4 -4 -4 -3 -3 -2 -1 --------- Run | Jun Mat Min Mat Min Exi Min Mat Fac Low Low Zio Dee Pro Fac Low Low Dat Pro Fac Upp Upp War Pro Fac Upp Upp Zhi Pro Res Res Acc Machines Accessed 86 | . 10 1 16 . 1 . 14 19 . 3 1 . . 1 . . 4 . 2 . 1 1 . . . 1 5 . 4 1 1 Terminals 40 | . 8 . 11 . . . 8 12 . . . . . . . . . . . . 1 . . . . . . . . . . Fabricators 4 | . . . . . . . . 1 . . . . . 1 . . . . 1 . . . . . . . . . 1 . . Repair Stations 8 | . 1 . 1 . . . 2 2 . . . . . . . . . . . . . . . . . . . . 1 1 . Recycling Units 7 | . 1 . 2 . . . 2 2 . . . . . . . . . . . . . . . . . . . . . . . Scanalyzers 6 | . . . 2 . . . 2 . . . . . . . . . . . 1 . . . . . . . . . 1 . . Garrison Access 4 | . . . . . . . . 2 . . . . . . . . . . . . . . . . . . . . 1 . 1 Total Hacks 299 | . 31 1 64 . 4 . 60 52 . 6 5 . . 4 . . 31 . 9 . 1 1 . . . 1 18 . 6 3 2 Successful 210 | . 14 1 44 . 4 . 44 25 . 6 5 . . 3 . . 31 . 6 . 1 1 . . . 1 18 . 3 2 1 Failed 89 | . 17 . 20 . . . 16 27 . . . . . 1 . . . . 3 . . . . . . . . . 3 1 1 Catastrophic 9 | . 2 . . . . . 1 6 . . . . . . . . . . . . . . . . . . . . . . . Database Lockouts . | . . . . . . . . . . . . . . . . . . . . . . . . . . . . . . . . Manual 91 | . 19 . 28 . . . 26 10 . . . . . 2 . . . . 3 . . 1 . . . . . . 2 . . Terminals 138 | . 28 . 40 . . . 37 32 . . . . . . . . . . . . 1 . . . . . . . . . . Fabricators 12 | . . . . . . . . 3 . . . . . 4 . . . . 3 . . . . . . . . . 2 . . Repair Stations 21 | . 2 . 3 . . . 6 6 . . . . . . . . . . . . . . . . . . . . 1 3 . Recycling Units 13 | . 1 . 2 . . . 3 7 . . . . . . . . . . . . . . . . . . . . . . . Scanalyzers 41 | . . . 19 . . . 14 . . . . . . . . . . . 6 . . . . . . . . . 2 . . Garrison Access 7 | . . . . . . . . 4 . . . . . . . . . . . . . . . . . . . . 1 . 2 Terminal Hacks 117 | . 7 1 13 . 4 . 18 11 . 6 5 . . . . . 31 . . . 1 1 . . . 1 18 . . . . Record 27 | . . . . . 4 . . . . 4 . . . . . . 11 . . . 1 . . . . 1 6 . . . . Part Schematic 22 | . . . 1 . . . . . . . 5 . . . . . 12 . . . . . . . . . 4 . . . . Robot Schematic 6 | . . . . . . . 1 . . . . . . . . . 5 . . . . . . . . . . . . . . Robot Analysis 5 | . . . . . . . . 1 . . . . . . . . . . . . . . . . . . 4 . . . . Prototype ID Bank 18 | . 2 . 3 . . . 4 2 . . . . . . . . 3 . . . . . . . . . 4 . . . . Open Door 4 | . . 1 . . . . . . . 2 . . . . . . . . . . . 1 . . . . . . . . . Level Access Points 1 | . . . . . . . 1 . . . . . . . . . . . . . . . . . . . . . . . . Branch Access Points 1 | . . . . . . . . 1 . . . . . . . . . . . . . . . . . . . . . . . Machine Index 1 | . . . . . . . 1 . . . . . . . . . . . . . . . . . . . . . . . . Terminal Index 3 | . 1 . 1 . . . 1 . . . . . . . . . . . . . . . . . . . . . . . . Alert Level 3 | . . . 2 . . . 1 . . . . . . . . . . . . . . . . . . . . . . . . Unreport Threat 6 | . . . 1 . . . 3 2 . . . . . . . . . . . . . . . . . . . . . . . Locate Traps 7 | . 3 . 1 . . . . 3 . . . . . . . . . . . . . . . . . . . . . . . Recall Reinforcements 1 | . . . . . . . 1 . . . . . . . . . . . . . . . . . . . . . . . . Hauler Manifests 3 | . . . 1 . . . 1 1 . . . . . . . . . . . . . . . . . . . . . . . Zone Layout 9 | . 1 . 3 . . . 4 1 . . . . . . . . . . . . . . . . . . . . . . . Fabricator Hacks 2 | . . . . . . . . . . . . . . 2 . . . . . . . . . . . . . . . . . Load Schematic 1 | . . . . . . . . . . . . . . 1 . . . . . . . . . . . . . . . . . Build 1 | . . . . . . . . . . . . . . 1 . . . . . . . . . . . . . . . . . Repair Station Hacks 15 | . 2 . 2 . . . 6 3 . . . . . . . . . . . . . . . . . . . . . 2 . Scan Component 8 | . 1 . 1 . . . 3 2 . . . . . . . . . . . . . . . . . . . . . 1 . Repair 7 | . 1 . 1 . . . 3 1 . . . . . . . . . . . . . . . . . . . . . 1 . Recycling Unit Hacks 4 | . . . . . . . 1 3 . . . . . . . . . . . . . . . . . . . . . . . Process 1 | . . . . . . . . 1 . . . . . . . . . . . . . . . . . . . . . . . Report Inventory 2 | . . . . . . . 1 1 . . . . . . . . . . . . . . . . . . . . . . . Retrieve Matter 1 | . . . . . . . . 1 . . . . . . . . . . . . . . . . . . . . . . . Scanalyzer 36 | . . . 19 . . . 11 . . . . . . . . . . . 5 . . . . . . . . . 1 . . Insert Component 19 | . . . 9 . . . 5 . . . . . . . . . . . 4 . . . . . . . . . 1 . . Analyze 17 | . . . 10 . . . 6 . . . . . . . . . . . 1 . . . . . . . . . . . . Garrison Access Hacks 4 | . . . . . . . . 2 . . . . . . . . . . . . . . . . . . . . 1 . 1 Seal Access 4 | . . . . . . . . 2 . . . . . . . . . . . . . . . . . . . . 1 . 1 Unauthorized Hacks 32 | . 5 . 10 . . . 8 6 . . . . . 1 . . . . 1 . . . . . . . . . 1 . . Terminals 20 | . 4 . 8 . . . 6 2 . . . . . . . . . . . . . . . . . . . . . . . Track 5 | . . . 2 . . . 3 . . . . . . . . . . . . . . . . . . . . . . . . Assimilate 3 | . 1 . 2 . . . . . . . . . . . . . . . . . . . . . . . . . . . . Botnet 9 | . 2 . 3 . . . 2 2 . . . . . . . . . . . . . . . . . . . . . . . Operators 3 | . 1 . 1 . . . 1 . . . . . . . . . . . . . . . . . . . . . . . . Fabricators 6 | . . . . . . . . 3 . . . . . 1 . . . . 1 . . . . . . . . . 1 . . Report 1 | . . . . . . . . 1 . . . . . . . . . . . . . . . . . . . . . . . Liberate 4 | . . . . . . . . 1 . . . . . 1 . . . . 1 . . . . . . . . . 1 . . Haulers 1 | . . . . . . . . 1 . . . . . . . . . . . . . . . . . . . . . . . Repair Stations . | . . . . . . . . . . . . . . . . . . . . . . . . . . . . . . . . Recycling Units 6 | . 1 . 2 . . . 2 1 . . . . . . . . . . . . . . . . . . . . . . . Reject 1 | . . . . . . . . 1 . . . . . . . . . . . . . . . . . . . . . . . Tunnel 5 | . 1 . 2 . . . 2 . . . . . . . . . . . . . . . . . . . . . . . . Scanalyzers . | . . . . . . . . . . . . . . . . . . . . . . . . . . . . . . . . Garrison Access . | . . . . . . . . . . . . . . . . . . . . . . . . . . . . . . . . Data Cores Recovered 1 | . . . . . . . . . . . . . . . . . . . 1 . . . . . . . . . . . . Used . | . . . . . . . . . . . . . . . . . . . . . . . . . . . . . . . . Hacking Detections 54 | . 8 . 12 . . . 10 15 . . . . . 1 . . . . 2 . 1 . . . . . . . 3 1 1 Full Trace Events 3 | . . . . . . . . 3 . . . . . . . . . . . . . . . . . . . . . . . Feedback Events 2 | . . . . . . . . 2 . . . . . . . . . . . . . . . . . . . . . . . Corruption 2 | . . . . . . . . 2 . . . . . . . . . . . . . . . . . . . . . . . Feedback Blocked . | . . . . . . . . . . . . . . . . . . . . . . . . . . . . . . . . Robot Schematics Acquired 9 | . . . . . . . 1 . . . 3 . . . . . 5 . . . . . . . . . . . . . . Robots Built 2 | . . . . . . . . . . . . . . 2 . . . . . . . . . . . . . . . . . Authchips 1 | . . . . . . . . . . . . . . 1 . . . . . . . . . . . . . . . . . Time 93 | . . . . . . . . . . . . . . 93 . . . . . . . . . . . . . . . . . Total Robot Build Rating 14 | . . . . . . . . . . . . . . 14 . . . . . . . . . . . . . . . . . Part Schematics Acquired 49 | . . . 10 . . . 4 . . . 19 . . . . . 12 . . . . . . . . . 4 . . . . Parts Built . | . . . . . . . . . . . . . . . . . . . . . . . . . . . . . . . . Authchips . | . . . . . . . . . . . . . . . . . . . . . . . . . . . . . . . . Time . | . . . . . . . . . . . . . . . . . . . . . . . . . . . . . . . . Total Part Build Rating . | . . . . . . . . . . . . . . . . . . . . . . . . . . . . . . . . Parts Repaired 7 | . 1 . 1 . . . 3 1 . . . . . . . . . . . . . . . . . . . . . 1 . Time 383 | . 26 . 26 . . . 178 54 . . . . . . . . . . . . . . . . . . . . . 99 . Parts Recycled . | . . . . . . . . . . . . . . . . . . . . . . . . . . . . . . . . Recycled Matter 100 | . . . . . . . . 100 . . . . . . . . . . . . . . . . . . . . . . . Retrieved Matter 100 | . . . . . . . . 100 . . . . . . . . . . . . . . . . . . . . . . . Retrieved Components . | . . . . . . . . . . . . . . . . . . . . . . . . . . . . . . . . Parts Scanalyzed 15 | . . . 9 . . . 5 . . . . . . . . . . . 1 . . . . . . . . . . . . Part Schematics Acquired 13 | . . . 9 . . . 4 . . . . . . . . . . . . . . . . . . . . . . . . Parts Damaged . | . . . . . . . . . . . . . . . . . . . . . . . . . . . . . . . . Bothacking | -11 -10 -10 -9 -9 -9 -8 -8 -7 -7 -7 -7 -7 -6 -6 -6 -6 -6 -5 -5 -5 -5 -5 -4 -4 -4 -4 -4 -3 -3 -2 -1 ------------ Run | Jun Mat Min Mat Min Exi Min Mat Fac Low Low Zio Dee Pro Fac Low Low Dat Pro Fac Upp Upp War Pro Fac Upp Upp Zhi Pro Res Res Acc Used RIF Installer . | . . . . . . . . . . . . . . . . . . . . . . . . . . . . . . . . Robots Hacked 10 | . . . 2 . 4 . . . . . . . . . . . . . . . . . . . . . 3 . . . 1 Non-combat 5 | . . . 2 . 3 . . . . . . . . . . . . . . . . . . . . . . . . . . Combat 4 | . . . . . 1 . . . . . . . . . . . . . . . . . . . . . 3 . . . . Robot Hacks Applied 10 | . . . 3 . 4 . . . . . . . . . . . . . . . . . . . . . 3 . . . . parse_system 9 | . . . 2 . 4 . . . . . . . . . . . . . . . . . . . . . 3 . . . . no_distress 1 | . . . 1 . . . . . . . . . . . . . . . . . . . . . . . . . . . . Manual 1 | . . . . . . . . . . . . . . . . . . . . . . . . . . . . . . . 1 Relay Couplers Released 5 | . . . . . . . . 4 . . . . . . . . . . . . . . . . . . . . . 1 . Machine Destruction 1 | . . . . . . . . . . . . . . . . . . . . . . . . . . . . . . 1 . Programmers 4 | . . . . . . . . 4 . . . . . . . . . . . . . . . . . . . . . . . Fabnet Peak Effective % . | . . . . . . . . . . . . . . . . . . . . . . . . . . . . . . . . Robots Rewired 5 | . . . . . . . . . . . . . . . . . . . . . . 5 . . . . . . . . . Allies Hacked 2 | . . . . . . . . . . . . . . . . . . . . . . . . . . . . . . . 2 Hacks Repelled . | . . . . . . . . . . . . . . . . . . . . . . . . . . . . . . . . Allies | -11 -10 -10 -9 -9 -9 -8 -8 -7 -7 -7 -7 -7 -6 -6 -6 -6 -6 -5 -5 -5 -5 -5 -4 -4 -4 -4 -4 -3 -3 -2 -1 -------- Run | Jun Mat Min Mat Min Exi Min Mat Fac Low Low Zio Dee Pro Fac Low Low Dat Pro Fac Upp Upp War Pro Fac Upp Upp Zhi Pro Res Res Acc Total Allies 22 | . . . 2 3 . . . . . . 3 . . 5 . . . 1 1 . . 5 . 1 . . . . . . 1 Largest Group 5 | . . . 2 5 5 2 2 . . . 3 3 . 5 2 2 . 1 1 . . 5 1 1 1 1 . . . . 1 Highest-Rated Group 242 | . . . 20 96 96 20 20 . . . 90 90 . 199 112 112 . 96 26 . . 242 65 65 10 10 . . . . 219 Highest-Rated Ally 219 | . . . 10 31 31 10 10 . . . 31 31 . 56 56 56 . 96 26 . . 65 65 65 10 10 . . . . 219 Total Orders 49 | . . . 6 10 . 2 11 . . . . . . 2 . . . . 6 . . 2 . 5 . . . . 2 1 2 STAY 15 | . . . 2 5 . 1 5 . . . . . . . . . . . 1 . . 1 . . . . . . . . . ROAM 1 | . . . 1 . . . . . . . . . . . . . . . . . . . . . . . . . . . . FOLLOW 17 | . . . 3 5 . 1 6 . . . . . . . . . . . 1 . . 1 . . . . . . . . . RETURN 16 | . . . . . . . . . . . . . . 2 . . . . 4 . . . . 5 . . . . 2 1 2 Ally Attacks 121 | . . . . . . . . . . . . 35 . 27 . 9 . 3 . . . 19 . . . . . . . . 28 Total Damage 4711 | . . . . . . . . . . . . 368 . 827 . 308 . 154 . . . 794 . . . . . . . . 2260 Kills 36 | . . . . . . . . . . . . 7 . 7 . 2 . 1 . . . 4 . . . . . . . . 15 Allies Corrupted 1 | . . . . . . . . . . . . . . . . . . . . . . . . 1 . . . . . . . Allies Melted 1 | . . . . . . . . . . . . . . . . . . . . . . . . . . . . . . 1 . Intel | -11 -10 -10 -9 -9 -9 -8 -8 -7 -7 -7 -7 -7 -6 -6 -6 -6 -6 -5 -5 -5 -5 -5 -4 -4 -4 -4 -4 -3 -3 -2 -1 ------- Run | Jun Mat Min Mat Min Exi Min Mat Fac Low Low Zio Dee Pro Fac Low Low Dat Pro Fac Upp Upp War Pro Fac Upp Upp Zhi Pro Res Res Acc Robot Analysis Total 5 | . . . . . . . . 1 . . . . . . . . . . . . . . . . . . 4 . . . . Derelict Logs Recovered 24 | . . . . 1 . . . . 2 1 2 . 3 . 2 2 . 1 . 2 3 . 1 . 3 1 . . . . . Drone Launches 16 | . . . . . . . . . . . . . . 2 . . . . 4 . . . . 5 . . . . 2 1 2 Drone Recoveries 16 | . . . . . . . . . . . . . . 2 . . . . 4 . . . . 5 . . . . 2 1 2 Exploration | -11 -10 -10 -9 -9 -9 -8 -8 -7 -7 -7 -7 -7 -6 -6 -6 -6 -6 -5 -5 -5 -5 -5 -4 -4 -4 -4 -4 -3 -3 -2 -1 ------------- Run | Jun Mat Min Mat Min Exi Min Mat Fac Low Low Zio Dee Pro Fac Low Low Dat Pro Fac Upp Upp War Pro Fac Upp Upp Zhi Pro Res Res Acc Turns Passed 41836 | 45 1709 387 2432 952 288 867 2118 4641 1750 1210 1395 1952 1403 712 769 1013 150 841 1056 1662 1114 1102 1890 1251 1156 1669 596 1368 1663 1430 1245 Spaces Moved 23925 | 38 751 206 1443 698 232 561 1154 2295 993 727 818 1016 930 464 568 687 79 598 504 1075 800 665 1005 650 826 1079 217 900 709 673 564 Core 13 | 13 . . . . . . . . . . . . . . . . . . . . . . . . . . . . . . . Treads 5168 | . 29 . 3 . . . 845 1794 777 727 818 175 . . . . . . . . . . . . . . . . . . . Legs 13834 | . . . . . . . . . . . . 841 930 464 568 687 79 598 504 1075 800 665 1005 650 826 1079 217 900 709 673 564 Wheels 4910 | 25 722 206 1440 698 232 561 309 501 216 . . . . . . . . . . . . . . . . . . . . . . Hover . | . . . . . . . . . . . . . . . . . . . . . . . . . . . . . . . . Flight . | . . . . . . . . . . . . . . . . . . . . . . . . . . . . . . . . Fastest Speed 50 | 50 100 105 105 105 120 120 105 145 160 160 160 110 130 130 130 130 130 130 130 130 130 130 175 120 135 135 135 135 135 132 135 Average Speed 140 | 82 140 138 120 119 120 138 144 157 164 160 164 139 130 130 130 130 188 130 130 130 130 145 175 122 139 135 135 135 135 136 135 Slowest Speed 320 | 100 320 145 240 120 120 165 158 225 240 160 240 240 130 130 130 130 199 130 130 199 130 195 175 176 186 135 186 183 135 186 185 Overloaded Moves . | . . . . . . . . . . . . . . . . . . . . . . . . . . . . . . . . Propulsion Burnouts . | . . . . . . . . . . . . . . . . . . . . . . . . . . . . . . . . Robots Hopped . | . . . . . . . . . . . . . . . . . . . . . . . . . . . . . . . . Cave-ins Triggered . | . . . . . . . . . . . . . . . . . . . . . . . . . . . . . . . . Exploration Rate (%) 66 | 3 98 29 87 99 64 95 78 54 95 93 85 80 95 13 68 66 70 74 16 88 87 88 96 17 91 78 71 87 25 31 21 Regions Visited 31 Branch Regions 21 Pre-discovered Areas 19 | . 1 . 2 1 1 . 2 . 1 . 2 . 2 . 1 . 1 . . . 1 . . . . 1 3 . . . . Known Exits Taken 24 | . . . . . . . 1 1 1 1 1 1 1 1 1 1 1 1 1 1 1 1 1 1 1 1 1 1 1 1 . Unknown Exits Taken 7 | 1 1 1 1 1 1 1 . . . . . . . . . . . . . . . . . . . . . . . . . Scrap Searched 42 | . . . . 1 . 1 . . 3 2 2 . 3 . 1 10 . 2 . 2 2 . 4 . 4 2 . 3 . . . Spaces Dug 618 | . 15 13 36 14 . . 22 120 17 7 3 8 17 14 10 14 . 4 17 27 20 . 11 44 . 12 . 24 95 17 37 Terrain Destroyed 1157 | . 17 20 62 41 . 5 76 157 24 23 3 99 39 15 10 19 . 27 23 35 21 3 14 87 . 12 1 26 104 66 128 Melee 136 | . . . 10 . . . 9 96 1 7 3 3 7 . . . . . . . . . . . . . . . . . . Projectile 519 | . 15 . 17 . . . 12 22 2 . . 7 12 15 10 19 . 4 23 35 21 3 14 61 . 12 1 26 104 24 60 AOE 502 | . 2 20 35 41 . 5 55 39 21 16 . 89 20 . . . . 23 . . . . . 26 . . . . . 42 68 Terrain Rammed . | . . . . . . . . . . . . . . . . . . . . . . . . . . . . . . . . Walls Destroyed . | . . . . . . . . . . . . . . . . . . . . . . . . . . . . . . . . Machines Disabled . | . . . . . . . . . . . . . . . . . . . . . . . . . . . . . . . . Actions | -11 -10 -10 -9 -9 -9 -8 -8 -7 -7 -7 -7 -7 -6 -6 -6 -6 -6 -5 -5 -5 -5 -5 -4 -4 -4 -4 -4 -3 -3 -2 -1 --------- Run | Jun Mat Min Mat Min Exi Min Mat Fac Low Low Zio Dee Pro Fac Low Low Dat Pro Fac Upp Upp War Pro Fac Upp Upp Zhi Pro Res Res Acc Total 30108 | 48 1280 267 1957 773 238 623 1450 2879 1068 758 857 1480 1056 550 587 780 80 650 846 1292 840 790 1107 991 831 1268 516 1013 1229 1129 875 Wait 4021 | . 421 16 277 50 1 48 112 192 29 9 4 320 70 55 8 66 . 38 278 173 4 61 73 235 2 158 270 86 378 399 188 Move 23893 | 37 750 205 1442 697 231 560 1153 2294 992 726 817 1015 929 463 567 686 78 597 503 1074 799 664 1004 649 825 1078 216 899 708 672 563 Hop . | . . . . . . . . . . . . . . . . . . . . . . . . . . . . . . . . Pick Up 163 | 5 19 6 26 1 . . 29 25 2 3 7 14 1 . . . . . 5 1 4 7 . 2 . 1 1 1 1 2 . Fast Attach 45 | 6 2 . 2 . . . 3 4 . . 1 8 . 1 . . . . . . 1 2 1 6 . . 6 1 1 . . Attach 55 | . 2 7 3 1 . 1 4 13 1 1 4 12 1 1 . . . . . . . . . . . . . . . 2 2 Detach 58 | . . . . . . . . 4 . . 4 8 2 . . . 1 1 . 1 1 . 2 5 2 . 6 . 4 10 7 Swap 451 | . 24 10 63 4 2 2 29 92 20 3 6 19 4 11 2 4 1 5 19 8 9 7 7 20 2 10 3 5 26 11 23 Drop 172 | . 7 3 26 . . . 34 22 1 2 5 28 . . . . . 1 5 1 5 11 1 7 . 1 6 2 2 2 . Fire 912 | . 55 20 69 20 . 10 67 112 17 1 . 33 23 16 10 19 . 8 33 32 17 4 15 64 . 15 8 18 106 31 89 Melee 213 | . . . 16 . 4 . 13 119 4 10 9 17 21 . . . . . . . . . . . . . . . . . . Ram . | . . . . . . . . . . . . . . . . . . . . . . . . . . . . . . . . Kick 1 | . . . . . . . . . . . . . . . . . . . . . . . . . . . . . . . 1 Crush 10 | . . . . . . 2 6 2 . . . . . . . . . . . . . . . . . . . . . . . Escape Stasis . | . . . . . . . . . . . . . . . . . . . . . . . . . . . . . . . . Rewire 35 | . . . . . . . . . . . . . . . . . . . . . . 34 . . . . . 1 . . . Trap 79 | . . . 33 . . . . . 2 3 . 6 5 3 . 5 . . 3 2 . . 4 3 . 5 . . 3 . 2 Miscellaneous . | . . . . . . . . . . . . . . . . . . . . . . . . . . . . . . . . Route ------- -11/Junkyard -10/Materials (discovered 5 exits: *Mat x3 / *Min x2) -10/Mines -9/Materials (discovered 3 exits: *Mat x2 / [*Min]) -9/Mines (discovered 4 exits: *Mat x2 / *Exi / *Zio) -9/Exiles -8/Mines (discovered 2 exits: *Mat x2) -8/Materials (discovered 3 exits: *Fac x3) -7/Factory (discovered 5 exits: *Fac x2 / Sto / *Low x2) -7/Lower Caves -7/Lower Caves (discovered 2 exits: *Fac / *Zio) -7/Zion (discovered 2 exits: *Dee / [*Pro]) -7/Deep Caves -6/Proximity Caves -6/Factory (discovered 6 exits: Fac x4 / *Low x2) -6/Lower Caves -6/Lower Caves -6/Data Miner -5/Proximity Caves -5/Factory (discovered 8 exits: Fac x4 / *Upp x2 / Ext x2) -5/Upper Caves -5/Upper Caves (discovered 2 exits: *Fac / *War) -5/Warlord -4/Proximity Caves -4/Factory (discovered 6 exits: *Res x4 / *Upp x2) -4/Upper Caves -4/Upper Caves (discovered 2 exits: *Res / *Zhi) -4/Zhirov -3/Proximity Caves -3/Research (discovered 2 exits: *Res x2) -2/Research -1/Access To Epsilon Eridani History --------- Turn | Location | Event 10 | -11/Junkyard | Discovered new exit (range 15) 46 | -11/Junkyard | Entered Materials 280 | -10/Materials | Discovered new exit (range 6) 312 | -10/Materials | Build established: Mutant 445 | -10/Materials | Discovered new exit (range 16) 550 | -10/Materials | Discovered new exit (range 13) 1034 | -10/Materials | Discovered new exit (range 12) 1081 | -10/Materials | Repaired Lgt. Treads 1564 | -10/Materials | Discovered new exit (range 16) 1755 | -10/Materials | Entered Mines 1820 | -10/Mines | Met a Derelict who couldn't figure out how to use a Trap Extractor 1882 | -10/Mines | Discovered new exit (range 11) 1937 | -10/Mines | Assembled infested the area 1942 | -10/Mines | Assisted by a Guerilla fighting off Assembled 1950 | -10/Mines | Core integrity fell below 50% 1980 | -10/Mines | Lost 3 parts (1p1n1w) 2085 | -10/Mines | Core integrity fell below 20% 2114 | -10/Mines | Lost 3 parts (1n2w) 2142 | -10/Mines | Entered Materials 2142 | -9/Materials | Evolved 2 slots: Propulsion x1, Utility x1 2179 | -9/Materials | Repaired Lgt. Treads? 2555 | -9/Materials | Discovered new exit (range 3) 3411 | -9/Materials | Discovered new exit (range 15) 3963 | -9/Materials | Discovered new exit (range 15) 4574 | -9/Materials | Entered Mines 4574 | -9/Mines | Accompanied by 2 allies 4757 | -9/Mines | A Derelict revealed a hidden shortcut to a safe place 4989 | -9/Mines | Discovered new exit (range 12) 5021 | -9/Mines | Learned location of Zion (-7) 5082 | -9/Mines | Discovered new exit (range 10) 5218 | -9/Mines | Deemed a non-threat by the Exiles lab entrance 5219 | -9/Mines | Discovered new exit (range 5) 5355 | -9/Mines | Received a Mining Laser from a helpful Derelict 5394 | -9/Mines | Found a damaged Exp. Sensor Array with a note attached 5396 | -9/Mines | Found Prototype Device 5410 | -9/Mines | A weapon hastily lodged in a ceiling crevice suddenly fell to the ground 5526 | -9/Mines | Entered Exiles 5526 | -9/Exiles | Accompanied by 5 allies 5556 | -9/Exiles | Led the pair of lost Derelicts to a safe place 5556 | -9/Exiles | Met 8R-AWN 5580 | -9/Exiles | Met EX-HEX 5646 | -9/Exiles | Met EX-DEC 5692 | -9/Exiles | Met EX-BIN 5803 | -9/Exiles | Discovered new exit (range 10) 5814 | -9/Exiles | Entered Mines 5814 | -8/Mines | Accompanied by 2 allies 5830 | -8/Mines | Discovered new exit (range 9) 5933 | -8/Mines | Discovered new exit (range 5) 6681 | -8/Mines | Entered Materials 6681 | -8/Materials | Accompanied by 2 allies 6681 | -8/Materials | Evolved 2 slots: Propulsion x1, Utility x1 7177 | -8/Materials | Discovered new exit (range 7) 7507 | -8/Materials | Identified Exp. Sensor Array 7663 | -8/Materials | Repaired Adv. Treads? 7764 | -8/Materials | Repaired Arm. Wheel? 7797 | -8/Materials | Build established: Hacker-Mutant 8108 | -8/Materials | Repaired Exp. Sensor Array? 8223 | -8/Materials | Identified exit to Factory 8799 | -8/Materials | Entered Factory 8799 | -7/Factory | Evolved 2 slots: Utility x2 11081 | -7/Factory | Build established: Hacker-Assassin 11157 | -7/Factory | Discovered new exit (range 9) 11171 | -7/Factory | Identified exit to Factory 11757 | -7/Factory | Identified exit to Storage 11757 | -7/Factory | Identified exit to Lower Caves 11957 | -7/Factory | Repaired Exp. Sensor Array? 12592 | -7/Factory | Build established: Hacker-Mutant 12737 | -7/Factory | Discovered exit to Factory (range 8) 13177 | -7/Factory | Found Rocket Array 13246 | -7/Factory | First assault squad dispatched 13440 | -7/Factory | Entered Lower Caves 13978 | -7/Lower Caves | Learned location of 1 exit from Factory 14459 | -7/Lower Caves | Attracted the attention of an 0b10 checkpoint 15049 | -7/Lower Caves | Discovered new exit (range 6) 15057 | -7/Lower Caves | Identified exit to Lower Caves 15190 | -7/Lower Caves | Entered another Lower Caves area 15224 | -7/Lower Caves | Discovered exit to Factory (range 11) 15310 | -7/Lower Caves | Learned Factory stockpile data 15477 | -7/Lower Caves | Encountered a Warlord checkpoint 15929 | -7/Lower Caves | Learned Armory trap positions 15929 | -7/Lower Caves | Learned Research emergency access door positions 15929 | -7/Lower Caves | Learned Extension terminal intel 16154 | -7/Lower Caves | Discovered new exit (range 11) 16169 | -7/Lower Caves | Identified exit to Zion 16400 | -7/Lower Caves | Entered Zion 16447 | -7/Zion | System corruption cleaned by Quarantine Array 16477 | -7/Zion | Discovered new exit (range 16) 16493 | -7/Zion | Gained Derelict followers 16554 | -7/Zion | Given the Hacking Drone Bay 16556 | -7/Zion | Found Prototype Device 16776 | -7/Zion | Identified Hacking Drone Bay 16790 | -7/Zion | Found Prototype Device 16855 | -7/Zion | Build established: Mutant 17250 | -7/Zion | Learned location of Warlord (-5) 17382 | -7/Zion | Received a visual enhancement algorithm 17647 | -7/Zion | Found Prototype Special Weapon 17650 | -7/Zion | Found Prototype Special Weapon 17653 | -7/Zion | Found Prototype Special Weapon 17770 | -7/Zion | Discovered new exit (range 5) 17773 | -7/Zion | Saw the warning signs outside the Deep Caves entrance 17780 | -7/Zion | Identified exit to Deep Caves 17785 | -7/Zion | Identified RU-N14's Throwing Claymores (x3) 17788 | -7/Zion | Identified Mobile Refinery Mk. CCLXVII 17795 | -7/Zion | Entered Deep Caves 17795 | -7/Deep Caves | Accompanied by 3 allies 18026 | -7/Deep Caves | Attacked by Z-Imprinter 18036 | -7/Deep Caves | Destroyed Z-Imprinter 18206 | -7/Deep Caves | Z-Facility disabled 18291 | -7/Deep Caves | Found Prototype Protection 18291 | -7/Deep Caves | Identified Zio. Weapon Casing 18347 | -7/Deep Caves | Found Prototype Protection 18347 | -7/Deep Caves | Identified Zio. Heavy Carapace 18532 | -7/Deep Caves | Discovered new exit (range 7) 18541 | -7/Deep Caves | Identified exit to Proximity Caves 18749 | -7/Deep Caves | Spotted as-13745 18801 | -7/Deep Caves | Destroyed as-13745 18805 | -7/Deep Caves | Found GOLEM Unit 18887 | -7/Deep Caves | Spotted as-04515 18931 | -7/Deep Caves | Core integrity fell below 50% 18935 | -7/Deep Caves | Destroyed as-04515 19083 | -7/Deep Caves | Found Zio. Weapon Casing 19219 | -7/Deep Caves | Triggered Deep Caves wall 19219 | -7/Deep Caves | Spotted AS-46009 19225 | -7/Deep Caves | Destroyed AS-33630 19275 | -7/Deep Caves | Destroyed AS-46009 19296 | -7/Deep Caves | Destroyed 40 combat bots 19335 | -7/Deep Caves | Found Prototype Processor 19378 | -7/Deep Caves | Exposed GOLEM chamber 19382 | -7/Deep Caves | Found GOLEM Unit 19418 | -7/Deep Caves | Found GOLEM Unit 19434 | -7/Deep Caves | Found GOLEM Unit 19655 | -7/Deep Caves | Found GOLEM Unit 19694 | -7/Deep Caves | Found GOLEM Unit 19710 | -7/Deep Caves | Build established: Golem 19747 | -7/Deep Caves | Entered Proximity Caves 19767 | -6/Proximity Caves | Spotted B-75 Beast 20205 | -6/Proximity Caves | Destroyed B-75 Beast 20348 | -6/Proximity Caves | Learned Factory terminal intel 21093 | -6/Proximity Caves | Discovered exit to Factory (range 12) 21150 | -6/Proximity Caves | Entered Factory 21150 | -6/Factory | Evolved 2 slots: Power x1, Utility x1 21151 | -6/Factory | Identified exit to Lower Caves 21153 | -6/Factory | Loaded intel: 26 terminal locations 21186 | -6/Factory | Identified exit to Factory 21598 | -6/Factory | Fabricated H-77 Assassin? 21688 | -6/Factory | Cargo convoy interrupted 21862 | -6/Factory | Entered Lower Caves 21862 | -6/Lower Caves | Accompanied by 2 allies 21870 | -6/Lower Caves | Encountered a Warlord checkpoint 22201 | -6/Lower Caves | Learned location of 1 exit from Factory 22619 | -6/Lower Caves | Discovered new exit (range 8) 22629 | -6/Lower Caves | Identified exit to Lower Caves 22631 | -6/Lower Caves | Entered another Lower Caves area 22631 | -6/Lower Caves | Accompanied by 2 allies 23220 | -6/Lower Caves | Learned Factory interactive machine intel 23504 | -6/Lower Caves | Discovered new exit (range 8) 23513 | -6/Lower Caves | Identified exit to Data Miner 23644 | -6/Lower Caves | Entered Data Miner 23645 | -6/Data Miner | Discovered new exit (range 7) 23683 | -6/Data Miner | Met Data Miner 23723 | -6/Data Miner | Learned location of Section 7 (-2) 23723 | -6/Data Miner | Acquired the access code to Warlord's prototype stash 23756 | -6/Data Miner | Received God Mode back door access code from Data Miner 23791 | -6/Data Miner | Identified exit to Proximity Caves 23794 | -6/Data Miner | Entered Proximity Caves 24091 | -5/Proximity Caves | Escorted by Enhanced Grunt 24518 | -5/Proximity Caves | Received a Behemoth hack from an annoying Tinkerer 24635 | -5/Proximity Caves | Entered Factory 24635 | -5/Factory | Evolved 2 slots: Utility x2 24636 | -5/Factory | Identified exit to Upper Caves 24637 | -5/Factory | Identified exit to Factory 24638 | -5/Factory | Loaded intel: 53 interactive machine locations 24856 | -5/Factory | Identified exit to Extension 25178 | -5/Factory | Noticed a derelict Sapper rigging charges 25308 | -5/Factory | Identified Modified TNC 25691 | -5/Factory | Entered Upper Caves 25975 | -5/Upper Caves | Learned Factory security intel 26677 | -5/Upper Caves | Learned Factory stockpile data 27143 | -5/Upper Caves | Discovered new exit (range 15) 27163 | -5/Upper Caves | Identified exit to Upper Caves 27353 | -5/Upper Caves | Entered another Upper Caves area 27549 | -5/Upper Caves | Spotted B-75 Beast 27562 | -5/Upper Caves | Destroyed B-75 Beast 27673 | -5/Upper Caves | Learned Factory emergency access door positions 27775 | -5/Upper Caves | Encountered a Warlord checkpoint 28013 | -5/Upper Caves | Discovered new exit (range 11) 28025 | -5/Upper Caves | Identified exit to Warlord 28030 | -5/Upper Caves | Build established: Trapper-Golem 28467 | -5/Upper Caves | Entered Warlord 29048 | -5/Warlord | Met Warlord 29061 | -5/Warlord | Opened Warlord's prototype stash 29073 | -5/Warlord | Warlord's base attacked by MAIN.C 29100 | -5/Warlord | Found Prototype Reactor 29109 | -5/Warlord | Found Prototype Processor 29110 | -5/Warlord | Identified Exp. Target Analyzer 29115 | -5/Warlord | Found Prototype Device 29116 | -5/Warlord | Identified Thermal Barrier 29274 | -5/Warlord | Opened side exit 29423 | -5/Warlord | Warlord forces counterattacked 29529 | -5/Warlord | Spotted Striker 29555 | -5/Warlord | Discovered new exit (range 10) 29567 | -5/Warlord | Identified exit to Proximity Caves 29569 | -5/Warlord | Entered Proximity Caves 29569 | -4/Proximity Caves | Accompanied by 1 ally 31237 | -4/Proximity Caves | Discovered exit to Factory (range 10) 31239 | -4/Proximity Caves | Learned location of 1 exit from Research 31459 | -4/Proximity Caves | Entered Factory 31459 | -4/Factory | Accompanied by 1 ally 31459 | -4/Factory | Evolved 2 slots: Utility x2 31650 | -4/Factory | Discovered new exit (range 8) 31658 | -4/Factory | Identified exit to Research 31848 | -4/Factory | Build established: Golem 32495 | -4/Factory | Discovered new exit (range 12) 32539 | -4/Factory | Identified exit to Upper Caves 32579 | -4/Factory | Lost 3 parts (1n2u) 32710 | -4/Factory | Entered Upper Caves 32710 | -4/Upper Caves | Accompanied by 1 ally 32952 | -4/Upper Caves | Learned location of 1 exit from Research 32966 | -4/Upper Caves | Learned Research terminal intel 33613 | -4/Upper Caves | Discovered new exit (range 5) 33617 | -4/Upper Caves | Identified exit to Upper Caves 33618 | -4/Upper Caves | Encountered a Warlord checkpoint 33649 | -4/Upper Caves | Learned Research garrison access intel 33866 | -4/Upper Caves | Entered another Upper Caves area 33866 | -4/Upper Caves | Accompanied by 1 ally 33884 | -4/Upper Caves | Discovered exit to Research (range 8) 34101 | -4/Upper Caves | Found Alien Artifact 34733 | -4/Upper Caves | Build established: Trapper-Golem 35502 | -4/Upper Caves | Discovered new exit (range 7) 35512 | -4/Upper Caves | Learned location of Testing (-3) 35534 | -4/Upper Caves | Identified exit to Zhirov 35535 | -4/Upper Caves | Entered Zhirov 35536 | -4/Zhirov | Discovered new exit (range 3) 35540 | -4/Zhirov | Identified exit to Proximity Caves 35562 | -4/Zhirov | Met Zhirov 35606 | -4/Zhirov | Learned location of Command (-1) 35619 | -4/Zhirov | Zhirov requested help retrieving the SGEMP Prototype 35666 | -4/Zhirov | Found Alien Artifact 35666 | -4/Zhirov | Identified Integrated Dissipator 35666 | -4/Zhirov | Installed Integrated Dissipator, increased core heat dissipation (+20) 35685 | -4/Zhirov | Found Alien Artifact 35806 | -4/Zhirov | Cloak Generator disabled 35806 | -4/Zhirov | Attacked by Zhirov 35836 | -4/Zhirov | Zhirov detonated his lab 35851 | -4/Zhirov | Found Prototype Device 35851 | -4/Zhirov | Identified Exp. Thermal Shield 36131 | -4/Zhirov | Entered Proximity Caves 37422 | -3/Proximity Caves | Discovered exit to Research (range 13) 37499 | -3/Proximity Caves | Entered Research 37499 | -3/Research | Evolved 2 slots: Utility x2 37500 | -3/Research | Identified exit to Research 37502 | -3/Research | Loaded intel: 22 terminal locations 37503 | -3/Research | Loaded intel: 3 garrison access locations 37703 | -3/Research | Found Prototype Processor 37703 | -3/Research | Identified Exp. Signal Interpreter 37779 | -3/Research | Identified Dimensional Node Initializer 39162 | -3/Research | Entered another Research area 39162 | -2/Research | Warlord forces began assault on 0b10 39162 | -2/Research | Evolved 2 slots: Utility x1, Weapon x1 39272 | -2/Research | Research machine network offline 39274 | -2/Research | Repaired Adv. Energy Well? 39366 | -2/Research | Borebot progress halted 39493 | -2/Research | Borebot progress halted 39556 | -2/Research | Met up with Warlord 39661 | -2/Research | Spotted Striker 39886 | -2/Research | Spotted Striker 39891 | -2/Research | Destroyed Striker 39932 | -2/Research | Destroyed 9 combat bots 40138 | -2/Research | Discovered new exit (range 15) 40155 | -2/Research | Identified exit to Access 40592 | -2/Research | Entered Access 40592 | -1/Access | Evolved 2 slots: Utility x2 40906 | -1/Access | Spotted B-99 Colossus 40908 | -1/Access | Befriended a Behemoth using the annoying Tinkerer's hack 41005 | -1/Access | Spotted 6H-9JC(L) 41014 | -1/Access | Allies destroyed 6H-9JC(L) 41311 | -1/Access | Energy Cycler disabled 41342 | -1/Access | First assault squad dispatched 41399 | -1/Access | Spotted B-99 Colossus 41399 | -1/Access | Spotted B-99 Colossus 41653 | -1/Access | Discovered new exit (range 5) 41835 | -1/Access | Initialized slip node 41837 | *** | Escaped! Last Messages --------------- 41762_ Discarded Exp. Signal Interpreter. 41763_ GOLEM Unit beginning Asb. Alloy Armor integration. 41766_ NS# GW:X=PHD0AABG|Y15XHMNLEA4FH= XP4T1QC 41778_ C-30 ARC bursts open for emergency deployment. 41778_ S-43 Plague unfolds itself. 41778_ S-43 Plague destroyed. 41778_ C-30 ARC destroyed. 41778_ S-43 Plague destroyed. 41779_ K-01 Serf collects debris. 41781_ System corrupted: Component data lost. 41781_ S-43 Plague destroyed. 41783_ K-01 Serf collects debris. 41784_ S-43 Plague destroyed. 41784_ K-01 Serf collects debris. 41829_ Asb. Alloy Armor integration complete. [Achievement: Full Golem] 41835_ Discarded Asb. Nanovents. 41835_ Initializer activates and latches into the ground. 41836_ GOLEM Unit beginning Asb. Nanovents integration. 41837_ Asb. Nanovents integration complete. Map ----- +----------------------------------------------------+ | ???????????????????????????????????# """""" #? | | ???????????????????????????????????# """""" #? | | ???????????????????????????????????# """""" #? | | ???????????????????????????????????# #? | | ???????????????????????????????????# ! +? | | ???????????????????????????????????# #? | | ????????????????????? ?????????????#% #? | | ????????????????????? ??????????????? #? | | ????????????????????? ????????????????? ?? | | ????????????????????? #####??#####??????? ???? | | ??????????????#######=#####################+###### | | ????????????? [%!%= |=%A[!%! | | ????????????? [*%** *!||*[! | | ????????????????????#[[== =%!%################### | | ????????????????????#===[ !*!"#?????????????????? | | ????????????????????#%%% =""#?????????????????? | | ????????????????????#= T#?????????????????? | | ????????????????????# ""#?????????????????? | | ????????????????????# ""#?????????????????? | | ???????????????????## ""##????????????????? | | ???????????????????# #????????????????? | | ???????????????????## ##????????????????? | | ????????????????????# #?????###?????????? | | ????????????????????# #?????# #?????????? | | ????????????????????# #?????# #?????????? | | ????????????????????# <@" #?????# #?????????? | | ????????????????????# "" #?????# #?????????? | | ????????????????????# #?????# #?????????? | | ????????????????????# #?????#"########### | | ????????????????????# #?????# | | ????????????????????#""""""""""#?????# * | | ?????????????????????????????????????# | | ?????????????????????????????????????# " | | ?????????????????????????????????????#[ """" | | ?????????????????????????????????????# """"" | | ???????????????????????? ????????# """"" | | ?????????????????????? ????????# """" | | ??????????????????????? ????????# " | | ??????????????????????? ????????# [ | | ??????????????????????? ????????# ! | | ??????????????????????? ????????# | | ???????????????????????# ###################### | | ???????????????????????# # #????????? | | ???????????????????????# # * #????????? | | ???????????????????????# + """ ##???????? | | ???????????????????????# # ""T""*! #???????? | | ???????????????????????# # ! "" ""=%##???????? | | ?????????????#########?# # [#????????? | | ?????????????# ?# " ! #????????? | | ?????????????# # ###"#########????????? | +----------------------------------------------------+ Best States ------------- Heat Dissipation 132 Energy Generation 45 Energy Capacity 2100 Matter Stores 300 Matter Capacity 300 Sight Range 16 Robot Scan Range 20 Terrain Scan Density 10 Jamming Range 16 Additional Mass Support 20 Armor Coverage 1350 Resistance: KI 15 Resistance: TH 15 Resistance: EX 15 Resistance: EM 15 Resistance: I 15 Resistance: S 15 Resistance: P 15 Power Shielding 33 Utility Shielding 66 Weapon Shielding 100 Phase Shifting 8 Evasion (%) 63 Targeting Accuracy 8 Core Analysis 8 Recoil Reduction 4 Offensive Hacking 10 Defensive Hacking 20 Authchip Count 1 Trap Extractor Capacity 6 Item Schematics ----------------- Huge Storage Unit | -9/Materials | Hacked Hcp. Storage Unit | -9/Materials | Scanalyzed Imp. Flight Unit | -9/Materials | Scanalyzed Mni. Grenade Launcher | -9/Materials | Scanalyzed Datajack | -9/Materials | Scanalyzed Imp. Targeting Computer | -9/Materials | Scanalyzed Machine Analyzer | -9/Materials | Scanalyzed Med. Armor Plating | -9/Materials | Scanalyzed Hacking Suite | -9/Materials | Scanalyzed Arm. Wheel | -9/Materials | Scanalyzed Exp. Sensor Array | -8/Materials | Scanalyzed Aerolev Unit | -8/Materials | Scanalyzed Imp. Signal Interpreter | -8/Materials | Scanalyzed Adv. Treads | -8/Materials | Scanalyzed Beamcaster | -7/Zion | Free Hvy. Beamcaster | -7/Zion | Free Slug Cannon | -7/Zion | Free Plasma Flamer | -7/Zion | Free Ripper | -7/Zion | Free Hvy. Ion Cannon | -7/Zion | Archive Thermal Shield | -7/Zion | Archive Shock Absorption System | -7/Zion | Archive Matter Compressor | -7/Zion | Archive Microactuators | -7/Zion | Archive 0b10 Decoder Chip [Generic] | -7/Zion | Archive Kinecellerator | -7/Zion | Archive Remote Force Field | -7/Zion | Archive Adv. Field Recycling Unit | -7/Zion | Archive Mak. System Shield | -7/Zion | Archive Mak. Transmission Jammer | -7/Zion | Archive Force Booster | -7/Zion | Archive Force Field | -7/Zion | Archive Lgt. Angular Momentum Engine | -7/Zion | Archive Combat Drone Bay | -6/Data Miner | Free Lgt. Regenerative Plating | -6/Data Miner | Free Cld. Gravmag System | -6/Data Miner | Free Imp. Energy Well | -6/Data Miner | Free Cld. Plasma Rifle | -6/Data Miner | Free Imp. Linear Gravjet | -6/Data Miner | Free Adv. Thermal Generator | -6/Data Miner | Free Hvy. Disruptor Cannon | -6/Data Miner | Free Wave Gun | -6/Data Miner | Free Imp. Gyrokinetic Inverter | -6/Data Miner | Free Adv. Force Field | -6/Data Miner | Free Adv. Corruption Screen | -6/Data Miner | Free Assault Drone Bay | -4/Zhirov | Free Exp. Heat Sink | -4/Zhirov | Free Exp. Optical Array | -4/Zhirov | Free Imp. Arc Thrower | -4/Zhirov | Free Robot Schematics ------------------ H-55 Commando | -8/Materials | Hacked B-48 Gladiator | -7/Zion | Archive K-01 Serf | -7/Zion | Archive H-77 Assassin | -7/Zion | Archive M-22 Extractor | -6/Data Miner | Free L-41 Fighter | -6/Data Miner | Free X-72 Disruptor | -6/Data Miner | Free G-50 Soldier | -6/Data Miner | Free M-36 Artificer | -6/Data Miner | Free Fabricated ------------ H-77 Assassin | x2 | -6/Factory | Authchip Alien Tech Used ----------------- Integrated Dissipator Dimensional Node Initializer Achievements -------------- Full Golem Challenges ------------ None Game ------ Seed LightningNavigationSuite Manual? 0 Play Time 05:42:04 Cumulative 527.4 hours Start 2023.03.24 @ 13:07:31 End 2023.03.25 @ 09:37:48 Sessions 9 Manual Loads 0 Difficulty Rogue Special Mode None Game No. 123 Rogue 123 Adventurer 0 Explorer 0 Win Type 0 Total 27 Types 18/2/4/0/1/0/1/1/0 Lore% 91 Gallery% 93 Achievement% 83 Wizard Run 0 Options --------- ASCII 0 Keyboard 0 Movement Numpad Keybinds 0 Fullscreen 1 Font 14/SmallcapsGlow Map View 84x54 Tactical HUD 1 Map Filters NONE Filters NONE Steam 1 RUN: 8f84fe6b-fb84-4a7c-808d-e83aa434e17c